bitfinex-derivatives/quotes_ETHF0:USTF0_20250421
["timestamp","ask_amount","ask_price","bid_price","bid_amount"]
[1745199444255,3.2078,1616.4,1616.3,2.90581]
[1745199444760,2.85972,1616.5,1616.3,2.90581]
[1745199444961,1.6222,1616.5,1616.4,2.90574]
[1745199445162,7.22131,1616.7,1616.6,1.23738]
[1745199445359,7.21431204,1616.7,1616.6,1.23738]
[1745199445555,8.98891204,1616.7,1616.6,1.23738]
[1745199445853,8.98891204,1616.7,1616.6,1.6682]
[1745199446263,1.23738,1616.6,1616.5,4.1769]
[1745199446455,7.21436204,1616.7,1616.5,5.40736204]
[1745199446656,7.20736408,1616.7,1616.6,1.6611]
[1745199446856,8.83276408,1616.7,1616.6,1.6611]
[1745199447160,5.97000408,1616.7,1616.6,2.89848]
[1745199447563,7.20731408,1616.7,1616.6,2.89848]
[1745199447863,7.20731408,1616.7,1616.6,1.6611]
[1745199448264,7.20731408,1616.7,1616.6,2.89848]
[1745199448467,1.24430796,1616.7,1616.6,2.89848]
[1745199449565,0.00699796,1616.7,1616.6,2.89848]
[1745199449970,1.24430796,1616.7,1616.6,1.6611]
[1745199451769,0.00699796,1616.7,1616.6,2.89848]
[1745199452870,1.24430796,1616.7,1616.6,1.6611]
[1745199453269,4.80510796,1616.7,1616.6,1.6611]
[1745199453771,1.23738,1616.6,1616.5,2.264]
[1745199453957,2.85878,1616.6,1616.5,2.25700204]
[1745199454469,6.06658,1616.6,1616.5,2.25700204]
[1745199454867,1.6214,1616.6,1616.5,3.49446204]
[1745199455076,11.44770408,1616.7,1616.6,1.23738]
[1745199455372,6.92070612,1616.7,1616.6,4.89138]
[1745199455570,8.15803612,1616.7,1616.6,3.654]
[1745199455771,10.85403612,1616.7,1616.6,3.654]
[1745199456369,10.85403612,1616.7,1616.6,2.6568]
[1745199456764,10.85403612,1616.7,1616.6,3.89418]
[1745199456765,1.23733,1616.7,1616.6,3.89418]
[1745199456959,1.23731,1616.7,1616.6,3.6035]
[1745199457373,3.93331,1616.7,1616.6,3.6035]
[1745199457671,4.88881,1616.7,1616.6,3.6035]
[1745199458265,3.6515,1616.7,1616.6,4.84088]
[1745199458465,3.21008997,1616.8,1616.7,1.23731]
[1745199458665,3.21008997,1616.8,1616.7,2.90361]
[1745199458666,4.44733997,1616.8,1616.7,2.90361]
[1745199459065,4.44733997,1616.8,1616.7,1.6663]
[1745199459260,4.44733997,1616.8,1616.7,3.9303]
[1745199459672,3.21008997,1616.8,1616.7,5.16761]
[1745199459866,4.44731997,1616.8,1616.7,5.16761]
[1745199460264,4.44731997,1616.8,1616.7,3.9303]
[1745199460465,6.12821997,1616.8,1616.7,3.9303]
[1745199461372,2.92041997,1616.8,1616.7,5.16761]
[1745199461669,0.00228997,1616.8,1616.7,5.16761]
[1745199465275,1.23951997,1616.8,1616.7,5.16761]
[1745199465568,4.44731997,1616.8,1616.7,3.9303]
[1745199465775,6.26551997,1616.8,1616.7,3.9303]
[1745199466077,6.26551997,1616.8,1616.7,2.264]
[1745199468277,10.78451997,1616.8,1616.7,2.264]
[1745199471284,9.54728997,1616.8,1616.7,2.264]
[1745199471474,4.52128997,1616.8,1616.7,3.50131]
[1745199471673,0.00228997,1616.8,1616.7,3.50131]
[1745199471874,0.00228997,1616.8,1616.7,5.41231]
[1745199480994,4.519,1617.1,1617.0,1.23708]
[1745199481191,11.43964044,1617.2,1617.1,1.237]
[1745199481392,8.23184044,1617.2,1617.1,1.237]
[1745199481888,1.40213041,1617.2,1617.1,9.4448]
[1745199482088,1.40213041,1617.2,1617.1,11.0955]
[1745199484996,1.6754,1617.4,1617.3,1.23685]
[1745199485588,1.7409,1617.5,1617.4,1.23677]
[1745199485888,3.4163,1617.5,1617.4,1.23677]
[1745199486188,3.4163,1617.5,1617.4,5.16067]
[1745199486390,13.68380612,1617.6,1617.5,1.23669]
[1745199486693,10.47600612,1617.6,1617.5,2.89659]
[1745199486889,5.96300612,1617.6,1617.5,2.89659]
[1745199487397,3.4435,1617.7,1617.6,1.23662]
[1745199493505,1.23662,1617.6,1617.5,2.264]
[1745199493801,4.9828,1617.6,1617.5,3.50069]
[1745199495599,1.7542,1617.7,1617.6,1.23662]
[1745199495905,3.5231,1617.7,1617.6,2.93312]
[1745199496099,3.5231,1617.7,1617.6,3.81462]
[1745199497705,7.7198,1617.8,1617.7,1.23654]
[1745199498098,4.512,1617.8,1617.7,5.19704]
[1745199498297,9.17080612,1618.0,1617.9,1.23639]
[1745199498499,6.6361,1618.2,1618.1,1.23624]
[1745199500396,3.4283,1618.2,1618.1,1.23624]
[1745199503905,2.5698,1618.2,1618.1,2.98314]
[1745199505202,4.1348,1618.4,1618.3,1.23608]
[1745199505396,10.83580612,1618.6,1618.2,5.7506]
[1745199505705,2.592,1618.5,1618.4,1.23595]
[1745199505905,2.592,1618.5,1618.3,2.85343]
[1745199506100,2.5998,1618.4,1618.3,2.85343]
[1745199506409,2.5998,1618.4,1618.3,1.23603]
[1745199508314,2.5998,1618.4,1618.3,2.87013]
[1745199511508,9.17080612,1618.6,1618.5,1.23593]
[1745199512209,10.93920612,1618.6,1618.5,5.17083]
[1745199512902,3.2078,1618.6,1618.5,6.08043]
[1745199513106,1.8809,1618.8,1618.7,1.23578]
[1745199513107,3.6493,1618.8,1618.7,1.23578]
[1745199513901,13.67380612,1618.9,1618.8,1.2357]
[1745199514115,13.67380612,1618.9,1618.8,3.0074]
[1745199514607,11.77870612,1618.9,1618.8,3.0074]
[1745199514812,5.96300612,1618.9,1618.8,3.0074]
[1745199515016,5.96300612,1618.9,1618.8,3.917]
[1745199516316,0.8542,1619.2,1619.1,1.23547]
[1745199516619,4.062,1619.2,1618.9,1.7717]
[1745199516818,2.92672,1619.1,1619.0,0.00928793]
[1745199517115,2.92667,1619.1,1619.0,0.00928793]
[1745199517318,1.6912,1619.1,1619.0,0.00928793]
[1745199517707,4.062,1619.2,1619.0,2.90525793]
[1745199517918,5.2974,1619.2,1619.0,1.66978793]
[1745199518217,7.42867,1619.1,1619.0,0.00928793]
[1745199519213,6.1932,1619.1,1619.0,0.00928793]
[1745199519417,6.1932,1619.1,1619.0,1.24483793]
[1745199519619,1.6912,1619.1,1619.0,1.24483793]
[1745199520115,4.062,1619.2,1619.1,1.23547]
[1745199520307,5.7015,1619.2,1619.1,1.23547]
[1745199520816,1.6395,1619.2,1619.1,2.88447]
[1745199521011,12.59850612,1619.4,1619.1,2.5345]
[1745199521207,1.6395,1619.3,1619.2,1.2354]
[1745199521407,1.6395,1619.3,1619.0,0.92518793]
[1745199521613,1.6395,1619.3,1619.0,1.24483793]
[1745199521614,3.2078,1619.1,1619.0,1.24483793]
[1745199521812,15.31230612,1619.3,1619.0,0.00928793]
[1745199522115,1.6395,1619.2,1619.0,1.24478793]
[1745199522619,0.884,1619.1,1619.0,1.24478793]
[1745199522816,0.884,1619.1,1619.0,0.00928793]
[1745199523006,0.884,1619.1,1619.0,1.24483793]
[1745199523007,4.0918,1619.1,1619.0,1.24483793]
[1745199523213,0.884,1619.1,1619.0,1.24483793]
[1745199524225,1.6395,1619.2,1619.1,1.23547]
[1745199524521,9.17080612,1619.3,1619.2,1.2354]
[1745199524721,3.2078,1619.3,1619.2,1.2354]
[1745199525018,7.7088,1619.5,1619.4,1.23524]
[1745199525221,4.8322,1619.5,1619.4,1.23524]
[1745199525719,3.2078,1619.5,1619.4,1.23524]
[1745199526107,3.2078,1619.5,1619.4,2.92844]
[1745199526313,3.2078,1619.5,1619.4,1.23524]
[1745199527119,3.2078,1619.5,1619.4,3.49924]
[1745199527320,1.7471,1619.7,1619.6,1.23509]
[1745199528517,1.7471,1619.7,1619.6,2.87029]
[1745199528919,1.7471,1619.7,1619.5,2.92833]
[1745199529117,3.2078,1619.6,1619.4,1.23521]
[1745199529418,4.0701,1619.8,1619.4,6.29579]
[1745199529622,11.79790612,1620.0,1619.9,1.23486]
[1745199529821,3.2078,1620.0,1619.9,1.23486]
[1745199530022,6.77480612,1620.2,1619.9,1.23481]
[1745199530233,2.6271,1620.1,1620.0,1.23478]
[1745199530418,6.77480612,1620.2,1620.1,1.23471]
[1745199530926,8.53180612,1620.2,1620.1,1.23471]
[1745199531326,7.72000612,1620.2,1620.1,1.23471]
[1745199532321,3.2078,1620.5,1620.1,3.2078]
[1745199532626,3.2078,1620.5,1620.4,1.23448]
[1745199533029,16.71581371,1621.0,1620.4,9.5]
[1745199533224,11.99046142,1620.8,1620.7,1.23425]
[1745199533429,11.99046142,1620.8,1620.5,1.7739]
[1745199533622,3.2078,1620.6,1620.4,2.264]
[1745199533822,4.97,1620.7,1620.5,1.23436]
[1745199534125,4.97,1620.7,1620.6,1.23433]
[1745199534322,10.22826142,1620.8,1620.4,1.7739]
[1745199534524,10.22826142,1620.8,1620.7,1.23425]
[1745199535118,12.49226142,1620.8,1620.7,1.23425]
[1745199536222,12.49226142,1620.8,1620.7,4.44205]
[1745199536631,12.49226142,1620.8,1620.7,1.23425]
[1745199536832,12.49226142,1620.8,1620.7,2.95925]
[1745199537035,12.49226142,1620.8,1620.7,7.95925]
[1745199537327,12.49226142,1620.8,1620.7,4.72925]
[1745199538521,12.49226142,1620.8,1620.7,3.495]
[1745199538726,12.49226142,1620.8,1620.6,3.2078]
[1745199538932,12.49226142,1620.8,1620.7,1.23425]
[1745199540038,12.49226142,1620.8,1620.6,1.6724]
[1745199540229,1.23425,1620.7,1620.6,1.6724]
[1745199540430,5.28625,1620.7,1620.4,6.17696]
[1745199540635,5.28625,1620.7,1620.4,7.84936]
[1745199540835,4.052,1620.7,1620.5,1.2344]
[1745199541134,11.07266142,1620.8,1620.7,1.23425]
[1745199541441,1.23425,1620.7,1620.4,1.7347]
[1745199541733,11.07266142,1620.8,1620.4,3.5297]
[1745199542030,3.2078,1620.7,1620.4,3.02948]
[1745199542331,1.23437,1620.6,1620.4,1.795]
[1745199542536,4.44209,1620.7,1620.4,3.02943]
[1745199542828,1.23436,1620.6,1620.4,1.795]
[1745199543034,1.23436,1620.6,1620.3,1.23451]
[1745199543233,0.8285,1620.5,1620.4,1.23448]
[1745199543738,0.8285,1620.5,1620.3,3.02952]
[1745199544337,0.8285,1620.5,1620.2,2.90661]
[1745199544531,3.2078,1620.3,1619.9,0.00925897]
[1745199544733,3.2078,1620.3,1620.0,1.7687]
[1745199544935,1.711,1620.2,1619.9,0.00925897]
[1745199545239,2.94569,1620.2,1619.9,3.01280897]
[1745199545533,1.23479,1620.0,1619.9,0.00925897]
[1745199545729,4.9188,1620.1,1619.9,0.00925897]
[1745199546238,4.9188,1620.1,1619.9,3.50806897]
[1745199546735,7.6988,1620.3,1620.1,1.23468]
[1745199547036,10.64439,1620.3,1620.0,3.88863]
[1745199547236,10.64439,1620.3,1620.1,1.6395]
[1745199547237,9.4098,1620.3,1620.1,1.6395]
[1745199547630,9.4098,1620.3,1619.9,0.00925897]
[1745199547824,1.7324,1620.2,1619.9,1.64875897]
[1745199548025,2.96706,1620.2,1619.9,2.88356897]
[1745199548431,6.17496,1620.1,1619.9,0.00925897]
[1745199548630,1.7324,1620.0,1619.9,0.00925897]
[1745199548839,2.96719,1620.0,1619.9,0.00925897]
[1745199549037,4.72529,1620.0,1619.9,0.00925897]
[1745199549241,1.23479,1620.0,1619.9,0.00925897]
[1745199549429,2.96719,1620.0,1619.9,0.00925897]
[1745199549732,1.7324,1620.0,1619.9,0.00925897]
[1745199549946,1.7324,1620.0,1619.9,1.64875897]
[1745199550239,1.7581,1620.2,1620.0,1.23479]
[1745199550434,1.7581,1620.2,1620.0,1.23476]
[1745199550635,4.63378,1620.2,1619.9,2.88359897]
[1745199550839,1.23474,1620.1,1619.9,0.00925897]
[1745199551034,2.87574,1620.1,1619.9,1.80195897]
[1745199551340,4.44259,1620.0,1619.9,0.00925897]
[1745199551535,6.08359,1620.0,1619.9,0.00925897]
[1745199552239,10.57559,1620.0,1619.9,0.00925897]
[1745199552539,14.3408,1620.0,1619.6,1.23509]
[1745199552740,2.8759,1619.9,1619.6,3.02779]
[1745199552926,4.44287,1619.7,1619.4,7.74022]
[1745199553233,1.7109,1619.6,1619.4,7.2734]
[1745199553430,1.7109,1619.6,1619.4,5.5612]
[1745199553630,2.94604,1619.6,1619.4,5.5612]
[1745199553837,4.44297,1619.5,1619.4,5.5612]
[1745199554033,6.15387,1619.5,1619.4,5.5612]
[1745199554230,4.9187,1619.5,1619.3,1.24456897]
[1745199554630,4.9187,1619.5,1619.4,1.7122]
[1745199554928,6.15387,1619.5,1619.4,1.7122]
[1745199555125,4.9187,1619.5,1619.4,3.9762]
[1745199555430,4.9187,1619.5,1619.4,5.21144]
[1745199555624,4.9187,1619.5,1619.4,3.9762]
[1745199555827,4.9187,1619.5,1619.4,2.264]
[1745199556234,4.9187,1619.5,1619.3,0.00925897]
[1745199556536,4.9187,1619.5,1619.3,1.24452897]
[1745199556537,1.7896,1619.4,1619.3,1.24452897]
[1745199556737,1.7896,1619.4,1619.3,4.33205897]
[1745199557138,1.7896,1619.4,1619.3,7.34667897]
[1745199557931,1.7896,1619.4,1619.3,6.11135897]
[1745199558135,1.7896,1619.4,1619.3,7.34667897]
[1745199558332,1.7896,1619.4,1619.3,6.11135897]
[1745199558538,1.7896,1619.4,1619.3,7.34667897]
[1745199559036,3.02484,1619.4,1619.3,6.11135897]
[1745199559234,7.51784,1619.4,1619.3,4.33205897]
[1745199559433,8.36084,1619.4,1619.3,4.33205897]
[1745199560240,13.36084,1619.4,1619.3,0.00925897]
[1745199560742,12.1256,1619.4,1618.9,2.5443]
[1745199560943,3.2078,1619.0,1618.9,1.6482]
[1745199561129,3.2078,1619.0,1618.9,2.88382]
[1745199562142,3.2078,1619.0,1618.9,5.14782]
[1745199562343,3.2078,1619.0,1618.9,3.9122]
[1745199562842,3.2078,1619.0,1618.9,5.14782]
[1745199563237,3.2078,1619.0,1618.9,3.9122]
[1745199563638,4.9564,1619.0,1618.9,3.9122]
[1745199564237,6.19195,1619.0,1618.9,3.9122]
[1745199564439,4.9564,1619.0,1618.9,5.14782]
[1745199565051,3.2078,1619.3,1618.9,16.03182]
[1745199565239,3.21696246,1619.7,1619.2,3.0885]
[1745199565439,0.00916246,1619.7,1619.6,1.23509]
[1745199565639,0.00916246,1619.7,1619.3,1.6447]
[1745199565943,4.44298,1619.5,1619.3,4.53496]
[1745199566140,3.2078,1619.5,1619.4,1.655]
[1745199566341,4.44297,1619.5,1619.4,1.655]
[1745199566537,3.2078,1619.5,1619.4,1.655]
[1745199566738,1.23529,1619.4,1619.2,2.264]
[1745199567045,2.85618,1619.4,1619.2,3.919]
[1745199567339,2.4333,1619.4,1619.2,1.655]
[1745199567539,1.6209,1619.3,1619.2,1.655]
[1745199567740,1.6209,1619.3,1619.2,2.8904]
[1745199568141,8.01861612,1619.6,1619.4,1.23522]
[1745199568442,1.23524,1619.4,1619.3,1.6332]
[1745199568837,2.87374,1619.4,1619.3,1.6332]
[1745199569245,1.6385,1619.4,1619.3,1.6332]
[1745199569447,2.87374,1619.4,1619.3,1.6332]
[1745199569948,1.6385,1619.4,1619.3,2.86852]
[1745199570159,4.44302,1619.5,1619.3,2.86852]
[1745199570451,11.27750612,1619.6,1619.4,1.6332]
[1745199570748,1.23517,1619.5,1619.4,1.6332]
[1745199570945,2.87367,1619.5,1619.4,1.6332]
[1745199571144,2.87367,1619.5,1619.4,3.8972]
[1745199572250,2.87367,1619.5,1619.4,1.6332]
[1745199572438,1.6385,1619.5,1619.4,1.6332]
[1745199572848,2.87367,1619.5,1619.4,1.6332]
[1745199573055,1.6385,1619.5,1619.4,2.86844]
[1745199573350,11.27750612,1619.6,1619.5,1.23517]
[1745199573656,12.99650612,1619.6,1619.5,3.02907]
[1745199574145,12.99650612,1619.6,1619.5,5.29307]
[1745199574349,4.02936246,1619.7,1619.6,1.23509]
[1745199574350,3.21696246,1619.7,1619.6,1.23509]
[1745199574648,0.00916246,1619.7,1619.6,3.77889]
[1745199574847,0.00916246,1619.7,1619.6,4.62419]
[1745199575053,0.00916246,1619.7,1619.6,3.3891]
[1745199575248,1.24417246,1619.7,1619.6,2.5438]
[1745199575449,3.03487246,1619.7,1619.5,2.264]
[1745199575754,6.24267246,1619.7,1619.5,3.983]
[1745199576046,3.02579,1619.6,1619.5,3.983]
[1745199576252,1.7907,1619.6,1619.5,5.21817]
[1745199576651,1.7907,1619.6,1619.5,3.983]
[1745199576853,1.7907,1619.6,1619.5,5.21817]
[1745199577156,4.07926246,1619.7,1619.5,3.983]
[1745199577351,4.07926246,1619.7,1619.6,1.7109]
[1745199577352,6.94629246,1619.7,1619.6,1.7109]
[1745199577654,1.23509,1619.6,1619.5,2.264]
[1745199577849,2.86709,1619.6,1619.5,3.9749]
[1745199578160,1.632,1619.6,1619.5,5.21007]
[1745199579155,4.07926246,1619.7,1619.5,3.9749]
[1745199579351,0.00916246,1619.7,1619.6,2.94599]
[1745199579555,0.00916246,1619.7,1619.6,3.80979]
[1745199580456,0.00916246,1619.7,1619.6,2.5747]
[1745199580671,0.00916246,1619.7,1619.6,3.80979]
[1745199581159,1.24417246,1619.7,1619.6,3.80979]
[1745199581655,1.24417246,1619.7,1619.6,2.5747]
[1745199581858,1.23509,1619.6,1619.5,2.264]
[1745199582161,2.98519,1619.6,1619.5,2.264]
[1745199582362,3.81169,1619.6,1619.5,2.264]
[1745199582653,3.21696246,1619.7,1619.6,1.23509]
[1745199582956,1.23509,1619.6,1619.5,2.264]
[1745199583162,3.81169,1619.6,1619.5,2.264]
[1745199584256,3.81169,1619.6,1619.5,1.6224]
[1745199584560,1.23517,1619.5,1619.4,0.8638]
[1745199584758,2.99417,1619.5,1619.4,2.4862]
[1745199585256,6.20197,1619.5,1619.4,4.7502]
[1745199585561,7.03377,1619.5,1619.4,2.264]
[1745199586263,1.23524,1619.4,1619.3,2.4677]
[1745199586561,2.99424,1619.4,1619.3,2.4677]
[1745199586961,2.99424,1619.4,1619.3,1.6224]
[1745199587557,1.23532,1619.3,1619.2,2.264]
[1745199587762,2.92712,1619.3,1619.2,2.264]
[1745199588155,6.13492,1619.3,1619.2,3.9059]
[1745199588460,1.23562,1618.9,1618.8,4.33335897]
[1745199588648,1.23562,1618.9,1618.8,5.97525897]
[1745199588856,1.23562,1618.9,1618.8,1.65115897]
[1745199589162,2.92742,1618.9,1618.8,1.65115897]
[1745199590657,7.41942,1618.9,1618.8,0.00925897]
[1745199590866,14.22532612,1618.9,1618.8,0.00925897]
[1745199591061,1.2357,1618.8,1618.7,2.264]
[1745199591260,1.23578,1618.7,1618.6,8.13718608]
[1745199591658,13.99418612,1618.7,1618.6,1.84496299]
[1745199591960,8.99418612,1618.7,1618.6,1.84496299]
[1745199592164,8.99418612,1618.7,1618.3,1.7401]
[1745199592165,1.23601,1618.4,1618.3,1.7401]
[1745199592559,1.23608,1618.3,1618.2,4.33495897]
[1745199592959,4.44388,1618.3,1618.2,4.33495897]
[1745199593154,6.16818,1618.3,1618.2,6.59895897]
[1745199594170,6.16818,1618.3,1618.2,4.33495897]
[1745199595165,6.16818,1618.3,1618.2,6.59895897]
[1745199595567,6.16818,1618.3,1618.2,2.27325897]
[1745199596966,2.96038,1618.3,1618.2,2.27325897]
[1745199597369,6.16818,1618.3,1618.2,2.27325897]
[1745199598667,6.16818,1618.3,1618.2,3.92035897]
[1745199599772,3.2078,1618.3,1618.2,3.92035897]
[1745199600074,7.19898612,1618.5,1618.2,6.91965897]
[1745199600262,7.19898612,1618.5,1618.3,1.6742]
[1745199600263,9.17080612,1618.5,1618.3,1.6742]
[1745199600467,1.23601,1618.4,1618.3,1.6742]
[1745199600671,12.05269612,1618.5,1618.3,1.6742]
[1745199600967,1.23601,1618.4,1618.3,1.6742]
[1745199601171,2.88191,1618.4,1618.3,1.6742]
[1745199601375,1.23608,1618.3,1618.2,2.27325897]
[1745199601565,4.8537,1618.3,1618.2,2.27325897]
[1745199601766,9.17080612,1618.5,1618.4,1.23601]
[1745199602267,7.11313,1618.7,1618.4,3.50001]
[1745199602478,7.11313,1618.7,1618.5,1.6383]
[1745199603071,7.11313,1618.7,1618.5,3.9023]
[1745199603272,7.11313,1618.7,1618.6,1.6383]
[1745199604376,0.00925897,1618.8,1618.7,1.23578]
[1745199604575,0.00925897,1618.8,1618.7,9.50478]
[1745199604878,1.2354,1619.2,1619.0,1.2355]
[1745199605076,6.06078,1619.3,1619.1,1.7142]
[1745199605476,6.06078,1619.3,1619.1,2.94967]
[1745199605672,13.90285649,1619.4,1619.2,1.2354]
[1745199605872,13.90285649,1619.4,1619.2,2.9496]
[1745199605873,13.91211546,1619.4,1619.2,2.9496]
[1745199606071,8.18484546,1619.4,1619.2,1.7142]
[1745199606278,8.18484546,1619.4,1619.3,2.94952]
[1745199606870,8.18484546,1619.4,1619.3,7.94952]
[1745199607878,8.18484546,1619.4,1619.3,11.15732]
[1745199608075,8.18484546,1619.4,1619.3,7.94952]
[1745199608279,0.00925897,1619.4,1619.3,7.94952]
[1745199608579,0.00925897,1619.4,1619.3,2.94952]
[1745199609381,0.00925897,1619.4,1619.3,10.64832]
[1745199609997,0.00925897,1619.4,1619.3,15.64832]
[1745199611695,3.2078,1619.9,1619.8,1.23494]
[1745199611895,3.2078,1619.9,1619.5,3.2078]
[1745199612090,4.44272,1619.9,1619.6,3.85895]
[1745199612403,6.13372,1619.9,1619.7,1.7347]
[1745199613192,2.92594,1619.8,1619.7,2.264]
[1745199613992,1.691,1619.8,1619.7,2.264]
[1745199614284,1.691,1619.8,1619.7,1.6486]
[1745199615299,1.691,1619.8,1619.7,3.9126]
[1745199615793,2.92594,1619.8,1619.7,3.9126]
[1745199615999,1.691,1619.8,1619.7,3.9126]
[1745199616296,2.92594,1619.8,1619.7,1.6486]
[1745199616495,1.23509,1619.6,1619.5,2.264]
[1745199616700,3.2078,1619.6,1619.5,2.264]
[1745199616999,4.44289,1619.6,1619.5,2.264]
[1745199617300,3.2078,1619.6,1619.3,1.6486]
[1745199617598,3.2078,1619.4,1619.0,5.37615897]
[1745199617796,1.6724,1619.3,1619.1,3.00561]
[1745199618096,1.6724,1619.3,1619.2,1.7702]
[1745199618496,1.6724,1619.3,1619.2,3.0056]
[1745199619094,1.6724,1619.3,1619.2,4.0342]
[1745199619299,2.90772,1619.3,1619.2,4.0342]
[1745199619603,2.90772,1619.3,1619.2,2.264]
[1745199619907,3.75182,1619.3,1619.2,2.264]
[1745199620095,3.75182,1619.3,1619.0,6.15585897]
[1745199620296,1.6289,1619.2,1619.0,4.92035897]
[1745199620600,1.23532,1619.3,1619.1,1.23547]
[1745199620800,2.86422,1619.3,1619.1,1.6602]
[1745199620992,2.86422,1619.3,1619.1,2.89564]
[1745199621192,1.6289,1619.2,1619.1,2.89564]
[1745199622004,2.8643,1619.2,1619.0,4.38565897]
[1745199622198,2.8643,1619.2,1619.0,6.04585897]
[1745199622396,1.6289,1619.1,1619.0,6.04585897]
[1745199622999,1.6289,1619.1,1619.0,4.81035897]
[1745199623205,2.86437,1619.1,1619.0,2.27325897]
[1745199623905,1.6289,1619.1,1619.0,2.27325897]
[1745199624103,1.6289,1619.1,1619.0,3.50880897]
[1745199624503,1.6289,1619.1,1619.0,2.27325897]
[1745199624804,2.86437,1619.1,1619.0,2.27325897]
[1745199625507,1.6289,1619.1,1619.0,2.27325897]
[1745199625703,2.86437,1619.1,1619.0,2.27325897]
[1745199626106,1.6289,1619.1,1619.0,2.27325897]
[1745199626400,2.86437,1619.1,1619.0,2.27325897]
[1745199626800,13.82737612,1619.1,1619.0,2.25474103]
[1745199627205,1.23585,1618.6,1618.5,1.6231]
[1745199627400,1.23603,1618.4,1618.1,4.8256]
[1745199627601,4.44383,1618.4,1618.1,6.4487]
[1745199627903,1.7426,1618.3,1618.2,1.6231]
[1745199628200,1.7426,1618.3,1618.2,3.8871]
[1745199628404,1.7426,1618.3,1618.2,2.264]
[1745199628901,1.7426,1618.3,1618.2,3.8871]
[1745199629604,3.21705897,1618.4,1618.3,1.23608]
[1745199629605,0.00925897,1618.4,1618.3,1.23608]
[1745199629800,0.00925897,1618.4,1618.3,2.92008]
[1745199630700,0.00925897,1618.4,1618.3,1.684]
[1745199630907,0.00925897,1618.4,1618.2,2.264]
[1745199631105,4.44388,1618.3,1618.2,2.264]
[1745199631503,6.06928,1618.3,1618.2,2.264]
[1745199632005,1.6254,1618.3,1618.2,2.264]
[1745199632204,1.6254,1618.3,1618.2,5.18416]
[1745199632406,0.00925897,1618.4,1618.3,1.23608]
[1745199632606,0.00925897,1618.4,1618.3,1.7281]
[1745199633106,1.23608,1618.3,1618.2,2.264]
[1745199633308,2.04768,1618.3,1618.2,2.264]
[1745199633508,8.27598,1618.3,1618.2,2.264]
[1745199634204,7.0399,1618.3,1618.2,2.264]
[1745199634505,8.27598,1618.3,1618.2,2.264]
[1745199635403,13.27598,1618.3,1618.2,2.264]
[1745199636307,1.23616,1618.2,1618.1,3.59865897]
[1745199636499,1.7305,1618.2,1618.1,3.59865897]
[1745199637108,4.9383,1618.2,1618.1,3.59865897]
[1745199638105,6.17446,1618.2,1618.1,3.59865897]
[1745199638306,6.17446,1618.2,1618.1,5.35165897]
[1745199638611,6.17446,1618.2,1618.1,3.59865897]
[1745199639713,6.17446,1618.2,1618.1,0.00925897]
[1745199640711,4.9383,1618.2,1618.1,0.00925897]
[1745199640915,5.3317,1618.3,1618.1,1.24549897]
[1745199641119,8.25178,1618.3,1618.2,1.6523]
[1745199641614,6.9866,1618.3,1618.2,2.88846]
[1745199641814,6.9866,1618.3,1618.2,1.6523]
[1745199642217,6.9866,1618.3,1618.2,3.9163]
[1745199642410,6.9866,1618.3,1618.2,5.15246]
[1745199642611,4.491,1618.3,1618.2,5.15246]
[1745199642811,0.03835897,1618.4,1618.3,1.23608]
[1745199643010,0.00925897,1618.4,1618.3,3.03018]
[1745199643407,3.2078,1618.8,1618.6,1.23582]
[1745199643713,1.7384,1618.9,1618.7,1.23572]
[1745199644022,1.7384,1618.9,1618.8,1.7941]
[1745199644516,2.97402,1618.9,1618.8,1.7941]
[1745199645116,14.54096858,1619.0,1618.8,3.0298]
[1745199645310,13.67096858,1619.0,1618.8,3.0298]
[1745199645616,13.67096858,1619.0,1618.9,1.7524]
[1745199645817,16.56031858,1619.0,1618.9,1.7524]
[1745199646214,16.56031858,1619.0,1618.9,4.0164]
[1745199647319,0.00916246,1619.0,1618.9,5.25202]
[1745199647521,4.45251246,1619.0,1618.9,4.0164]
[1745199647721,1.24471246,1619.0,1618.9,4.0164]
[1745199648018,4.45251246,1619.0,1618.9,4.0164]
[1745199649621,3.21696246,1619.0,1618.9,4.0164]
[1745199649820,3.21696246,1619.0,1618.9,5.25202]
[1745199650022,5.00746246,1619.0,1618.9,4.0164]
[1745199650820,6.24301246,1619.0,1618.9,4.0164]
[1745199651225,6.24301246,1619.0,1618.9,2.264]
[1745199651617,7.13731246,1619.0,1618.9,2.264]
[1745199652121,3.08922,1618.9,1618.3,1.23606]
[1745199652318,3.2078,1618.5,1618.2,1.757]
[1745199652517,3.2078,1618.5,1618.3,1.694]
[1745199652718,3.2078,1618.5,1618.3,2.93003]
[1745199653218,4.8395,1618.5,1618.4,1.694]
[1745199653417,4.8395,1618.5,1618.2,5.25713]
[1745199653612,1.6963,1618.4,1618.2,6.90113]
[1745199653815,1.6963,1618.4,1618.3,1.644]
[1745199654015,1.6963,1618.4,1618.3,2.88008]
[1745199654826,3.2078,1618.5,1618.3,1.644]
[1745199655021,3.2078,1618.5,1618.2,4.021]
[1745199655022,1.23601,1618.4,1618.2,4.021]
[1745199655219,8.93377,1618.5,1618.3,1.23606]
[1745199655521,10.63007,1618.5,1618.4,1.644]
[1745199656225,10.63007,1618.5,1618.4,3.908]
[1745199657017,10.63007,1618.5,1618.4,2.264]
[1745199657228,10.63007,1618.5,1618.2,0.895]
[1745199657229,1.23608,1618.3,1618.2,2.264]
[1745199657427,4.44388,1618.3,1618.2,2.264]
[1745199658227,4.44388,1618.3,1618.1,4.33525897]
[1745199658419,1.23616,1618.2,1618.1,4.33525897]
[1745199658740,2.95896,1618.2,1618.1,4.33525897]
[1745199659023,12.94403527,1618.2,1618.1,4.33525897]
[1745199659223,13.81163527,1618.2,1618.1,4.33525897]